fUST/lending_fUST_20250203
["ID","MTS","AMOUNT","RATE_DAILY","PERIOD"]
[351465402,1738588244683,-531.94,0.00016575,2]
[351465404,1738588244694,-500.0,0.00016575,2]
[351465406,1738588244703,-500.0,0.00016575,2]
[351465408,1738588244713,-500.0,0.00016575,2]
[351465410,1738588244722,-500.0,0.00016575,2]
[351465412,1738588244732,-500.0,0.00016575,2]
[351465414,1738588244742,-500.0,0.00016575,2]
[351465416,1738588244752,-500.0,0.00016575,2]
[351465418,1738588244761,-519.7037956,0.00016575,2]
[351465420,1738588244775,-500.0,0.00016575,2]
[351465422,1738588244784,-500.0,0.00016575,2]
[351465424,1738588244795,-500.0,0.00016575,2]
[351465426,1738588244805,-500.0,0.00016575,2]
[351465428,1738588244816,-500.0,0.00016575,2]
[351465430,1738588244826,-500.0,0.00016575,2]
[351465432,1738588244835,-500.0,0.00016575,2]
[351465434,1738588244845,-506.62777129,0.00016575,2]
[351465436,1738588244854,-380.98109731,0.00016575,2]
[351465438,1738588244865,-233.54089318,0.00016575,2]
[351465440,1738588244875,-500.0,0.00016575,2]
[351465442,1738588244886,-352.54752496,0.00016575,2]
[351465444,1738588244897,-500.0,0.00016575,2]
[351465446,1738588244906,-500.0,0.00016575,2]
[351465448,1738588244915,-500.0,0.00016575,2]
[351465450,1738588244924,-500.0,0.00016575,2]
[351465452,1738588244933,-445.90231529,0.00016575,2]
[351465454,1738588244943,-189.54952417,0.00016575,2]
[351465456,1738588244952,-500.0,0.00016575,2]
[351465458,1738588244962,-500.0,0.00016575,2]
[351465460,1738588244971,-500.0,0.00016575,2]
[351465462,1738588244981,-664.13,0.00016575,2]
[351465464,1738588244990,-200.0,0.00016575,2]
[351465466,1738588244999,-500.0,0.00016575,2]
[351465468,1738588245009,-500.0,0.00016575,2]
[351465470,1738588245021,-500.74639614,0.00016575,2]
[351465472,1738588245033,-500.0,0.00016575,2]
[351465474,1738588245045,-500.0,0.00016575,2]
[351465476,1738588245056,-500.0,0.00016575,2]
[351465478,1738588245069,-501.12625775,0.00016575,2]
[351465480,1738588245085,-500.0,0.00016575,2]
[351465481,1738588245098,-826.28,0.00016575,2]
[351465483,1738588245112,-430.75687463,0.00016575,2]
[351465486,1738588245122,-500.0,0.00016575,2]
[351465488,1738588245132,-500.0,0.00016575,2]
[351465490,1738588245142,-500.0,0.00016575,2]
[351465491,1738588245151,-504.26582757,0.00016575,2]
[351465493,1738588245161,-500.0,0.00016575,2]
[351465495,1738588245171,-500.0,0.00016575,2]
[351465498,1738588245181,-503.71216868,0.00016575,2]
[351465500,1738588245191,-500.0,0.00016575,2]
[351465502,1738588245201,-502.53856804,0.00016575,2]
[351465504,1738588245211,-500.0,0.00016575,2]
[351465506,1738588245220,-500.0,0.00016575,2]
[351465507,1738588245230,-500.0,0.00016575,2]
[351465509,1738588245240,-750.29,0.00016575,2]
[351465511,1738588245250,-500.0,0.00016575,2]
[351465514,1738588245259,-500.81672919,0.00016575,2]
[351465515,1738588245269,-503.05122479,0.00016575,2]
[351465518,1738588245279,-500.0,0.00016575,2]
[351465519,1738588245288,-500.0,0.00016575,2]
[351465521,1738588245298,-500.0,0.00016575,2]
[351465523,1738588245309,-500.0,0.00016575,2]
[351465525,1738588245323,-500.0,0.00016575,2]
[351465527,1738588245335,-500.0,0.00016575,2]
[351465530,1738588245347,-500.0,0.00016575,2]
[351465531,1738588245358,-500.0,0.00016575,2]
[351465533,1738588245368,-522.95,0.00016575,2]
[351465535,1738588245377,-500.0,0.00016575,2]
[351465537,1738588245386,-638.61211102,0.00016575,2]
[351465539,1738588245395,-500.0,0.00016575,2]
[351465541,1738588245405,-502.01378941,0.00016575,2]
[351465543,1738588245414,-500.0,0.00016575,2]
[351465545,1738588245423,-500.0,0.00016575,2]
[351465547,1738588245432,-504.24252704,0.00016575,2]
[351465549,1738588245442,-500.0,0.00016575,2]
[351465551,1738588245451,-500.0,0.00016575,2]
[351465553,1738588245460,-507.17358388,0.00016575,2]
[351465555,1738588245470,-350.6986335,0.00016575,2]
[351465557,1738588245479,-500.0,0.00016575,2]
[351465559,1738588245488,-473.66079443,0.00016575,2]
[351465561,1738588245498,-500.0,0.00016575,2]
[351465563,1738588245508,-500.0,0.00016575,2]
[351465565,1738588245517,-500.0,0.00016575,2]
[351465567,1738588245527,-501.04664382,0.00016575,2]
[351465569,1738588245536,-504.36582995,0.00016575,2]
[351465571,1738588245545,-500.0,0.00016575,2]
[351465573,1738588245555,-547.40715514,0.00016575,2]
[351465575,1738588245564,-500.0,0.00016575,2]
[351465577,1738588245574,-500.0,0.00016575,2]
[351465579,1738588245583,-500.0,0.00016575,2]
[351465580,1738588245592,-500.0,0.00016575,2]
[351465582,1738588245602,-534.72,0.00016575,2]
[351465584,1738588245615,-500.0,0.00016575,2]
[351465587,1738588245625,-372.56220049,0.00016575,2]
[351465589,1738588245634,-500.0,0.00016575,2]
[351465592,1738588245643,-500.0,0.00016575,2]
[351465594,1738588245652,-500.0,0.00016575,2]
[351465596,1738588245661,-535.25,0.00016575,2]
[351465598,1738588245670,-500.0,0.00016575,2]
[351465599,1738588245679,-504.63112114,0.00016575,2]
[351465601,1738588245688,-500.0,0.00016575,2]
[351465603,1738588245697,-8041.66,0.00016575,2]
[351465605,1738588245708,-500.0,0.00016575,2]
[351465607,1738588245717,-500.0,0.00016575,2]
[351465609,1738588245726,-500.0,0.00016575,2]
[351465611,1738588245736,-500.0,0.00016575,2]
[351465613,1738588245745,-500.0,0.00016575,2]
[351465615,1738588245754,-500.0,0.00016575,2]
[351465616,1738588245763,-501.40524426,0.00016575,2]
[351465618,1738588245776,-500.0,0.00016575,2]
[351465620,1738588245785,-500.0,0.00016575,2]
[351465622,1738588245795,-500.0,0.00016575,2]
[351465624,1738588245805,-500.0,0.00016575,2]
[351465626,1738588245815,-503.17,0.00016575,2]
[351465628,1738588245824,-500.0,0.00016575,2]
[351465630,1738588245833,-559.07,0.00016575,2]
[351465632,1738588245842,-500.0,0.00016575,2]
[351465634,1738588245851,-543.07730482,0.00016575,2]
[351465636,1738588245863,-1103.92,0.00016575,2]
[351465638,1738588245872,-511.91,0.00016575,2]
[351465640,1738588245881,-592.66,0.00016575,2]
[351465642,1738588245890,-490.5634252,0.00016575,2]
[351465644,1738588245899,-1927.11,0.00016575,2]
[351465646,1738588245908,-500.0,0.00016575,2]
[351465648,1738588245918,-500.0,0.00016575,2]
[351465649,1738588245927,-500.0,0.00016575,2]
[351465651,1738588245937,-500.0,0.00016575,2]
[351465653,1738588245946,-3504.37,0.00016575,2]
[351465655,1738588245955,-500.0,0.00016575,2]
[351465657,1738588245965,-290.06986761,0.00016575,2]
[351465659,1738588245975,-500.0,0.00016575,2]
[351465661,1738588245984,-500.0,0.00016575,2]
[351465663,1738588245993,-500.0,0.00016575,2]
[351465665,1738588246002,-6787.06,0.00016575,2]
[351465667,1738588246012,-500.0,0.00016575,2]
[351465669,1738588246021,-903.56,0.00016575,2]
[351465671,1738588246031,-500.0,0.00016575,2]
[351465673,1738588246040,-500.0,0.00016575,2]
[351465675,1738588246049,-500.0,0.00016575,2]
[351465677,1738588246058,-635.38,0.00016575,2]
[351465679,1738588246067,-504.9306235,0.00016575,2]
[351465681,1738588246076,-500.0,0.00016575,2]
[351465683,1738588246086,-500.0,0.00016575,2]
[351465684,1738588246095,-740.27,0.00016575,2]
[351465686,1738588246104,-745.09,0.00016575,2]
[351465688,1738588246116,-503.03276632,0.00016575,2]
[351465690,1738588246125,-500.0,0.00016575,2]
[351465692,1738588246135,-500.0,0.00016575,2]
[351465694,1738588246144,-599.09,0.00016575,2]
[351465696,1738588246154,-1908.51,0.00016575,2]
[351465698,1738588246163,-500.0,0.00016575,2]
[351465700,1738588246173,-565.33324275,0.00016575,2]
[351465702,1738588246182,-500.0,0.00016575,2]
[351465704,1738588246191,-500.0,0.00016575,2]
[351465706,1738588246201,-500.0,0.00016575,2]
[351465708,1738588246210,-16460.65,0.00016575,2]
[351465710,1738588246219,-500.0,0.00016575,2]
[351465712,1738588246228,-972.3,0.00016575,2]
[351465714,1738588246237,-929.08,0.00016575,2]
[351465715,1738588246246,-500.0,0.00016575,2]
[351465717,1738588246256,-500.0,0.00016575,2]
[351465719,1738588246265,-749.98,0.00016575,2]
[351465721,1738588246275,-432.75369698,0.00016575,2]
[351465723,1738588246285,-1001.85,0.00016575,2]
[351465725,1738588246294,-500.0,0.00016575,2]
[351465727,1738588246303,-500.0,0.00016575,2]
[351465729,1738588246312,-445.31860013,0.00016575,2]
[351465731,1738588246321,-500.0,0.00016575,2]
[351465733,1738588246331,-2712.88,0.00016575,2]
[351465735,1738588246340,-400.40049492,0.00016575,2]
[351465737,1738588246349,-9863.6,0.00016575,2]
[351465739,1738588246359,-143.0631896,0.00016575,2]
[351465743,1738588246391,-356.9368104,0.00016575,2]
[351465745,1738588246400,-513.22,0.00016575,2]
[351465747,1738588246410,-500.0,0.00016575,2]
[351465749,1738588246419,-691.14,0.00016575,2]
[351465751,1738588246428,-500.0,0.00016575,2]
[351465753,1738588246437,-545.88,0.00016575,2]
[351465755,1738588246447,-500.0,0.00016575,2]
[351465757,1738588246455,-1235.11,0.00016575,2]
[351465758,1738588246465,-614.77392378,0.00016575,2]
[351465760,1738588246474,-997.12,0.00016575,2]
[351465762,1738588246484,-500.0,0.00016575,2]
[351465764,1738588246494,-500.0,0.00016575,2]
[351465766,1738588246503,-500.0,0.00016575,2]
[351465768,1738588246512,-500.0,0.00016575,5]
[351465769,1738588246521,-500.0,0.00016575,2]
[351465770,1738588246531,-273.08257552,0.00016575,2]
[351465771,1738588246540,-510.73974402,0.00016575,2]
[351465772,1738588246549,-249.44772489,0.00016575,2]
[351465773,1738588246561,-250.55227511,0.00016575,2]
[351465774,1738588246571,-508.9014619,0.00016575,2]
[351465775,1738588246581,-103.52079055,0.00016575,2]
[351465776,1738588246592,-396.47920945,0.00016575,2]
[351465777,1738588246601,-500.0,0.00016575,2]
[351465778,1738588246612,-500.0,0.00016575,2]
[351465779,1738588246621,-504.73756369,0.00016575,2]
[351465780,1738588246630,-491.33035234,0.00016575,2]
[351465781,1738588246639,-418.70930979,0.00016575,2]
[351465782,1738588246648,-506.67149873,0.00016575,2]
[351465783,1738588246658,-5036.7,0.00016575,2]
[351465784,1738588246667,-94.02320859,0.00016575,2]
[351465785,1738588246775,-405.97679141,0.00016575,2]
[351465787,1738588246785,-500.0,0.00016575,2]
[351465789,1738588246795,-500.0,0.00016575,2]
[351465791,1738588246806,-500.0,0.00016575,2]
[351465793,1738588246815,-500.0,0.00016575,2]
[351465795,1738588246824,-500.0,0.00016575,2]
[351465797,1738588246834,-500.0,0.00016575,2]
[351465799,1738588246844,-500.0,0.00016575,2]
[351465801,1738588246854,-517.68774175,0.00016575,2]
[351465803,1738588246865,-500.0,0.00016575,2]
[351465805,1738588246875,-500.0,0.00016575,2]
[351465807,1738588246885,-666.3,0.00016575,2]
[351465809,1738588246895,-2167.94801539,0.00016575,2]
[351465879,1738588247606,-264.0253292,0.00016438,2]
[351465889,1738588247703,-27.84005474,0.00016438,2]
[351467225,1738588515889,400.0,0.00013973,2]
[351467227,1738588556583,178.071284,0.00013699,2]
[351467251,1738589298049,32667.15225533,0.0002,120]
[351467252,1738589298129,6347.12805913,0.000125,2]
[351467279,1738589372108,-1339.93861803,0.00015083,2]
[351467312,1738589432351,-43.62261477,0.00015083,2]
[351467313,1738589432362,-161.734703,0.00015192,2]
[351467314,1738589432373,-1128.59688223,0.00015345,2]
[351467340,1738589438437,-921.40311777,0.00015345,2]
[351467343,1738589438448,-414.789179,0.00015345,2]
[351467345,1738589438458,-388.5987275,0.00015438,2]
[351467347,1738589438468,-729.6246614,0.00015439,2]
[351467349,1738589438478,-300.0,0.00015999,2]
[351467351,1738589438488,-2672.06087563,0.00016,2]
[351467352,1738589438497,-1327.84044476,0.00016,2]
[351467354,1738589438507,-157.09,0.0001615,2]
[351467356,1738589438517,-354.5475049,0.000162,2]
[351467358,1738589438526,-354.5475049,0.000162,2]
[351467360,1738589438536,-354.5475049,0.000162,2]
[351467362,1738589438546,-8881.44284585,0.00016252,2]
[351467365,1738589438558,-4375.70943316,0.00016252,2]
[351467367,1738589438567,-354.65597147,0.00016338,2]
[351467369,1738589438577,-153.0,0.000164,2]
[351467371,1738589438588,-153.0,0.000164,2]
[351467372,1738589438597,-354.5475049,0.000164,2]
[351467375,1738589438607,-600.0000009,0.00016428,2]
[351467376,1738589438617,-287.32821101,0.00016428,2]
[351467378,1738589438628,-194.80077763,0.00016437,2]
[351467380,1738589438638,-500.0,0.00016437,2]
[351467382,1738589438648,-194.71853898,0.00016437,2]
[351467384,1738589438657,-500.0,0.00016437,2]
[351467386,1738589438667,-500.0,0.00016437,2]
[351467388,1738589438676,-399.39812613,0.00016437,2]
[351467390,1738589438685,-358.83646619,0.00016437,2]
[351467392,1738589438696,-500.0,0.00016437,2]
[351467394,1738589438705,-500.0,0.00016437,2]
[351467396,1738589438714,-71.70810539,0.00016437,2]
[351467399,1738589438727,-428.29189461,0.00016437,2]
[351467401,1738589438737,-177.50930346,0.00016437,2]
[351467403,1738589438746,-540.06417859,0.00016437,2]
[351467405,1738589438756,-500.0,0.00016437,2]
[351467407,1738589438766,-500.0,0.00016437,2]
[351467409,1738589438776,-500.0,0.00016437,2]
[351467410,1738589438787,-500.0,0.00016437,2]
[351467412,1738589438797,-369.3777589,0.00016437,2]
[351467844,1738589443955,-343.0000073,0.0001638,2]
[351467991,1738589446520,-2119.86922384,0.0001638,2]
[351468693,1738589461987,160.6023883,0.00013699,2]
[351468703,1738589666455,5681.98,0.00018,30]
[351468705,1738589878610,400.0,0.00013973,2]
[351468788,1738590638637,-207.394589,0.0001506,2]
[351468790,1738590638648,-440.39129782,0.0001595,2]
[351468792,1738590638658,-500.0,0.00015973,2]
[351468794,1738590638668,-300.0,0.00015989,2]
[351468796,1738590638678,-75149.1120726,0.0001599,2]
[351468798,1738590638688,-47000.0,0.00016,2]
[351468800,1738590638698,-300572.0247149,0.00016,3]
[351468802,1738590638710,-440.3912978,0.00016047,2]
[351468804,1738590638720,-157.177,0.0001605,2]
[351468806,1738590638730,-440.3912978,0.00016144,2]
[351468808,1738590638740,-13257.15227901,0.00016188,2]
[351468810,1738590638750,-34718.918014,0.00016238,2]
[351468812,1738590638760,-440.3912978,0.00016241,2]
[351468814,1738590638770,-440.3912978,0.00016338,2]
[351468816,1738590638780,-3000.0,0.00016338,2]
[351468818,1738590638790,-45597.23566533,0.00016338,7]
[351468820,1738590638800,-500.0,0.00016438,2]
[351468822,1738590638812,-500.0,0.00016438,2]
[351468824,1738590638822,-500.0,0.00016438,2]
[351468826,1738590638832,-466.36418391,0.00016438,2]
[351468829,1738590638842,-151.0,0.00016438,2]
[351468831,1738590638851,-500.0,0.00016438,2]
[351468833,1738590638861,-207.97586021,0.00016438,2]
[351468835,1738590638871,-500.0,0.00016438,2]
[351468837,1738590638880,-500.0,0.00016438,2]
[351468839,1738590638890,-500.0,0.00016438,2]
[351468841,1738590638900,-500.0,0.00016438,2]
[351468843,1738590638910,-500.0,0.00016438,2]
[351468845,1738590638921,-500.0,0.00016438,2]
[351468847,1738590638930,-500.0,0.00016438,2]
[351468849,1738590638940,-506.14144107,0.00016438,2]
[351468851,1738590638949,-500.0,0.00016438,2]
[351468853,1738590638959,-291.69114965,0.00016438,2]
[351468855,1738590638968,-500.0,0.00016438,2]
[351468857,1738590638978,-500.0,0.00016438,2]
[351468859,1738590638987,-511.80063945,0.00016438,2]
[351468861,1738590638997,-500.0,0.00016438,2]
[351468863,1738590639006,-500.0,0.00016438,2]
[351468865,1738590639016,-194.02296438,0.00016438,2]
[351468867,1738590639025,-500.0,0.00016438,2]
[351468869,1738590639034,-501.49681468,0.00016438,2]
[351468871,1738590639044,-500.82904676,0.00016438,2]
[351468873,1738590639055,-340.1928242,0.00016438,2]
[351468875,1738590639065,-500.0,0.00016438,2]
[351468877,1738590639074,-500.0,0.00016438,2]
[351468897,1738590639244,-500.0,0.00016438,2]
[351468899,1738590639254,-500.0,0.00016438,2]
[351468901,1738590639264,-500.0,0.00016438,2]
[351468903,1738590639273,-500.0,0.00016438,2]
[351468905,1738590639283,-500.0,0.00016438,2]
[351468907,1738590639293,-500.0,0.00016438,2]
[351468909,1738590639302,-549.33162169,0.00016438,2]
[351468911,1738590639315,-500.0,0.00016438,2]
[351468913,1738590639325,-500.0,0.00016438,2]
[351468915,1738590639334,-500.0,0.00016438,2]
[351468917,1738590639343,-500.0,0.00016438,2]
[351468919,1738590639352,-500.0,0.00016438,2]
[351468921,1738590639361,-151.0,0.00016438,2]
[351468923,1738590639370,-151.0,0.00016438,2]
[351468925,1738590639379,-500.51308713,0.00016438,2]
[351468927,1738590639389,-500.0,0.00016438,2]
[351468929,1738590639400,-500.0,0.00016438,2]
[351468931,1738590639409,-501.41662493,0.00016438,2]
[351468932,1738590639418,-500.0,0.00016438,2]
[351468934,1738590639427,-500.0,0.00016438,2]
[351468936,1738590639436,-500.0,0.00016438,2]
[351468938,1738590639446,-500.0,0.00016438,2]
[351468939,1738590639455,-151.0,0.00016438,2]
[351468940,1738590639465,-265.36073785,0.00016438,2]
[351468942,1738590639475,-473.16896912,0.00016438,2]
[351468944,1738590639484,-500.0,0.00016438,2]
[351468946,1738590639493,-500.0,0.00016438,2]
[351468948,1738590639503,-500.0,0.00016438,2]
[351468950,1738590639512,-500.0,0.00016438,2]
[351468951,1738590639521,-500.0,0.00016438,2]
[351468953,1738590639530,-500.0,0.00016438,2]
[351468955,1738590639540,-151.0,0.00016438,2]
[351468956,1738590639550,-500.0,0.00016438,2]
[351468958,1738590639564,-500.0,0.00016438,2]
[351468960,1738590639574,-500.0,0.00016438,2]
[351468962,1738590639584,-500.0,0.00016438,2]
[351468964,1738590639598,-524.23984873,0.00016438,2]
[351468966,1738590639607,-500.0,0.00016438,2]
[351468968,1738590639616,-500.0,0.00016438,2]
[351468970,1738590639626,-612.65181827,0.00016438,2]
[351468972,1738590639636,-500.0,0.00016438,2]
[351468974,1738590639645,-524.0,0.00016438,2]
[351468975,1738590639655,-500.0,0.00016438,2]
[351468976,1738590639664,-151.0,0.00016438,2]
[351468977,1738590639674,-151.0,0.00016438,2]
[351468979,1738590639684,-500.0,0.00016438,2]
[351468981,1738590639693,-500.0,0.00016438,2]
[351468982,1738590639703,-509.53172905,0.00016438,2]
[351468983,1738590639714,-500.0,0.00016438,2]
[351468984,1738590639723,-500.0,0.00016438,2]
[351468985,1738590639733,-500.0,0.00016438,2]
[351468986,1738590639743,-500.0,0.00016438,2]
[351468987,1738590639752,-500.0,0.00016438,2]
[351468988,1738590639762,-500.0,0.00016438,2]
[351468989,1738590639771,-500.0,0.00016438,2]
[351468990,1738590639780,-500.0,0.00016438,2]
[351468991,1738590639790,-500.0,0.00016438,2]
[351468992,1738590639799,-500.44987244,0.00016438,2]
[351468993,1738590639812,-500.0,0.00016438,2]
[351468994,1738590639821,-500.0,0.00016438,2]
[351468995,1738590639830,-500.0,0.00016438,2]
[351468996,1738590639840,-500.0,0.00016438,2]
[351468997,1738590639850,-500.0,0.00016438,2]
[351468998,1738590639860,-501.25742938,0.00016438,2]
[351468999,1738590639871,-500.0,0.00016438,2]
[351469000,1738590639882,-500.0,0.00016438,2]
[351469001,1738590639892,-500.0,0.00016438,2]
[351469002,1738590639902,-500.0,0.00016438,2]
[351469003,1738590639912,-500.0,0.00016438,2]
[351469004,1738590639922,-500.0,0.00016438,2]
[351469005,1738590639931,-500.0,0.00016438,2]
[351469006,1738590639941,-500.0,0.00016438,2]
[351469007,1738590639951,-500.0,0.00016438,2]
[351469008,1738590639961,-500.0,0.00016438,2]
[351469009,1738590639971,-500.0,0.00016438,2]
[351469010,1738590639981,-500.0,0.00016438,2]
[351469011,1738590639991,-528.12589544,0.00016438,2]
[351469012,1738590640001,-151.0,0.00016438,2]
[351469013,1738590640010,-151.0,0.00016438,2]
[351469014,1738590640021,-151.0,0.00016438,2]
[351469015,1738590640030,-648.68178865,0.00016438,2]
[351469016,1738590640040,-500.0,0.00016438,2]
[351469017,1738590640050,-500.0,0.00016438,2]
[351469018,1738590640062,-500.0,0.00016438,2]
[351469019,1738590640072,-500.0,0.00016438,2]
[351469020,1738590640082,-500.0,0.00016438,2]
[351469021,1738590640092,-500.0,0.00016438,2]
[351469022,1738590640108,-500.0,0.00016438,2]
[351469023,1738590640129,-500.0,0.00016438,2]
[351469024,1738590640150,-500.0,0.00016438,2]
[351469025,1738590640163,-500.0,0.00016438,2]
[351469026,1738590640173,-585.80280478,0.00016438,2]
[351469027,1738590640182,-500.0,0.00016438,2]
[351469028,1738590640192,-506.00447112,0.00016438,2]
[351469029,1738590640202,-500.0,0.00016438,2]
[351469030,1738590640211,-500.0,0.00016438,2]
[351469031,1738590640220,-500.0,0.00016438,2]
[351469032,1738590640230,-500.0,0.00016438,2]
[351469033,1738590640240,-500.0,0.00016438,2]
[351469034,1738590640250,-500.0,0.00016438,2]
[351469035,1738590640260,-500.0,0.00016438,2]
[351469036,1738590640270,-500.0,0.00016438,2]
[351469037,1738590640280,-500.0,0.00016438,2]
[351469038,1738590640290,-500.0,0.00016438,2]
[351469039,1738590640301,-500.0,0.00016438,2]
[351469040,1738590640316,-293.426502,0.00016438,2]
[351469041,1738590640325,-500.0,0.00016438,2]
[351469042,1738590640335,-500.0,0.00016438,2]
[351469043,1738590640345,-500.0,0.00016438,2]
[351469044,1738590640355,-500.0,0.00016438,2]
[351469045,1738590640365,-500.0,0.00016438,2]
[351469046,1738590640374,-500.0,0.00016438,2]
[351469047,1738590640383,-500.0,0.00016438,5]
[351469048,1738590640393,-500.0,0.00016438,2]
[351469049,1738590640403,-500.0,0.00016438,2]
[351469050,1738590640413,-151.0,0.00016438,2]
[351469051,1738590640424,-151.0,0.00016438,2]
[351469052,1738590640433,-500.0,0.00016438,2]
[351469053,1738590640443,-151.0,0.00016438,2]
[351469054,1738590640452,-500.0,0.00016438,2]
[351469055,1738590640462,-500.0,0.00016438,2]
[351469056,1738590640472,-151.0,0.00016438,2]
[351469057,1738590640481,-151.0,0.00016438,2]
[351469058,1738590640491,-180.163442,0.00016438,2]
[351469059,1738590640500,-501.57824832,0.00016438,2]
[351469060,1738590640510,-500.98027932,0.00016438,2]
[351469061,1738590640519,-501.15220094,0.00016438,2]
[351469062,1738590640529,-500.0,0.00016438,2]
[351469063,1738590640538,-504.99990313,0.00016438,2]
[351469064,1738590640547,-500.0,0.00016438,2]
[351469065,1738590640557,-500.30604606,0.00016438,2]
[351469066,1738590640567,-500.0,0.00016438,2]
[351469067,1738590640578,-503.67975763,0.00016438,2]
[351469068,1738590640588,-500.0,0.00016438,2]
[351469069,1738590640598,-500.0,0.00016438,2]
[351469070,1738590640607,-500.0,0.00016438,2]
[351469071,1738590640616,-500.0,0.00016438,2]
[351469072,1738590640628,-500.0,0.00016438,2]
[351469073,1738590640638,-500.0,0.00016438,2]
[351469074,1738590640647,-503.58967395,0.00016438,2]
[351469075,1738590640658,-500.0,0.00016438,2]
[351469076,1738590640668,-500.0,0.00016438,2]
[351469077,1738590640677,-367.73682754,0.00016438,2]
[351469078,1738590640686,-500.0,0.00016438,2]
[351469079,1738590640695,-500.0,0.00016438,2]
[351469080,1738590640705,-500.0,0.00016438,2]
[351469081,1738590640714,-500.0,0.00016438,2]
[351469082,1738590640724,-500.0,0.00016438,2]
[351469083,1738590640733,-501.80239524,0.00016438,2]
[351469084,1738590640742,-500.0,0.00016438,2]
[351469085,1738590640751,-500.0,0.00016438,2]
[351469086,1738590640761,-500.0,0.00016438,2]
[351469087,1738590640770,-500.0,0.00016438,2]
[351469088,1738590640779,-500.0,0.00016438,2]
[351469089,1738590640789,-500.0,0.00016438,2]
[351469090,1738590640799,-500.0,0.00016438,2]
[351469091,1738590640809,-500.0,0.00016438,2]
[351469092,1738590640819,-500.0,0.00016438,2]
[351469093,1738590640829,-500.0,0.00016438,2]
[351469094,1738590640838,-500.0,0.00016438,2]
[351469095,1738590640848,-500.0,0.00016438,2]
[351469096,1738590640857,-501.41277902,0.00016438,2]
[351469097,1738590640867,-504.94870733,0.00016438,2]
[351469098,1738590640876,-500.0,0.00016438,2]
[351469099,1738590640886,-500.0,0.00016438,2]
[351469100,1738590640897,-500.0,0.00016438,2]
[351469101,1738590640911,-500.0,0.00016438,2]
[351469102,1738590640923,-500.0,0.00016438,2]
[351469103,1738590640936,-500.0,0.00016438,2]
[351469104,1738590640951,-500.0,0.00016438,2]
[351469105,1738590640966,-506.16489752,0.00016438,2]
[351469106,1738590640977,-500.0,0.00016438,2]
[351469107,1738590640987,-500.0,0.00016438,2]
[351469108,1738590640997,-500.0,0.00016438,2]
[351469109,1738590641007,-330.24984875,0.00016438,2]
[351469110,1738590641019,-500.0,0.00016438,2]
[351469111,1738590641029,-500.0,0.00016438,2]
[351469112,1738590641040,-500.0,0.00016438,2]
[351469113,1738590641050,-500.0,0.00016438,2]
[351469114,1738590641061,-500.0,0.00016438,2]
[351469115,1738590641071,-500.0,0.00016438,2]
[351469116,1738590641081,-485.95503907,0.00016438,2]
[351469117,1738590641091,-500.0,0.00016438,2]
[351469119,1738590641102,-500.0,0.00016438,2]
[351469121,1738590641113,-500.0,0.00016438,2]
[351469123,1738590641122,-500.0,0.00016438,2]
[351469125,1738590641132,-500.0,0.00016438,2]
[351469127,1738590641143,-500.0,0.00016438,2]